Workbook

Sheet Brand Map
B2: Welcome to "Create Your Own Brand Association Map"
B3: Follow the Steps in Yellow | Z3: =IF(D$18<>"",D$18,"") -> Enter in Step 2 | AA3: =IF(D19<>"",D19,"") ->  | AB3: =IF(Z3<>"",1,0) -> 1 | AC3: =IF(AA3<>"",1,0) -> 0 | AD3: =+AC3+AB3 -> 1 | AE3: =IF(D$20<>"",D$20,"") ->  | AF3: =IF(D22<>"",D22,"") ->  | AG3: =IF(AE3<>"",1,0) -> 0 | AH3: =IF(AF3<>"",1,0) -> 0 | AI3: =+AH3+AG3 -> 0 | AJ3: =IF(D$22<>"",D$22,"") ->  | AK3: =IF(D29<>"",D29,"") ->  | AL3: =IF(AJ3<>"",1,0) -> 0 | AM3: =IF(AK3<>"",1,0) -> 0 | AN3: =+AM3+AL3 -> 0
B4: Please note that there is a YouTube video available on How to Use this Template | Z4: Enter in Step 2 | AB4: =IF(Z4<>"",1,0) -> 1 | AC4: =IF(AA4<>"",1,0) -> 0 | AD4: =+AC4+AB4 -> 1 | AG4: =IF(AE4<>"",1,0) -> 0 | AH4: =IF(AF4<>"",1,0) -> 0 | AI4: =+AH4+AG4 -> 0 | AJ4: =IF(D$23<>"",D$23,"") ->  | AK4: =IF(D24<>"",D24,"") ->  | AL4: =IF(AJ4<>"",1,0) -> 0 | AM4: =IF(AK4<>"",1,0) -> 0 | AN4: =+AM4+AL4 -> 0
B5: Only enter data/information in the Blue cells - type over any example data | Z5: Enter in Step 2 | AB5: 1 | AC5: 0 | AD5: 1 | AG5: 0 | AH5: 0 | AI5: 0 | AL5: 0 | AM5: 0 | AN5: 0
B6: The Grey cells provide additional information | Z6: Enter in Step 2 | AB6: 1 | AC6: 0 | AD6: 1 | AG6: 0 | AH6: 0 | AI6: 0 | AL6: 0 | AM6: 0 | AN6: 0
C7: For more information on Perceptual Maps visit: | G7: www.perceptualmaps.com | K7: Or email: geoff@perceptualmaps.com | Z7: Enter in Step 2 | AB7: 1 | AC7: 0 | AD7: 1 | AG7: 0 | AH7: 0 | AI7: 0 | AL7: 0 | AM7: 0 | AN7: 0
Z8: Enter in Step 2 | AB8: 1 | AC8: 0 | AD8: 1 | AG8: 0 | AH8: 0 | AI8: 0 | AL8: 0 | AM8: 0 | AN8: 0
Z9: Enter in Step 2 | AB9: 1 | AC9: 0 | AD9: 1 | AG9: 0 | AH9: 0 | AI9: 0 | AL9: 0 | AM9: 0 | AN9: 0
B10: STEP 1 | C10: Enter the Title of Your Map | G10: STEP 2 | H10: Enter Your Brand Name | Z10: Enter in Step 2 | AB10: 1 | AC10: 0 | AD10: 1 | AG10: 0 | AH10: 0 | AI10: 0 | AJ10: =IF(D$24<>"",D$24,"") ->  | AK10: =IF(D25<>"",D25,"") ->  | AL10: 0 | AM10: 0 | AN10: 0
Z11: Enter in Step 2 | AB11: 1 | AC11: 0 | AD11: 1 | AE11: =IF(D$21<>"",D$21,"") ->  | AF11: =IF(D22<>"",D22,"") ->  | AG11: 0 | AH11: 0 | AI11: 0 | AJ11: =IF(D$24<>"",D$24,"") ->  | AK11: =IF(D26<>"",D26,"") ->  | AL11: 0 | AM11: 0 | AN11: 0
Z12: Enter in Step 2 | AB12: 1 | AC12: 0 | AD12: 1 | AG12: 0 | AH12: 0 | AI12: 0 | AJ12: =IF(D$24<>"",D$24,"") ->  | AK12: =IF(D27<>"",D27,"") ->  | AL12: 0 | AM12: 0 | AN12: 0
Z13: Enter in Step 2 | AB13: 1 | AC13: 0 | AD13: 1 | AG13: 0 | AH13: 0 | AI13: 0 | AJ13: =IF(D$24<>"",D$24,"") ->  | AK13: =IF(D28<>"",D28,"") ->  | AL13: 0 | AM13: 0 | AN13: 0
Z14: =IF(D$19<>"",D$19,"") ->  | AA14: =IF(D20<>"",D20,"") ->  | AB14: 0 | AC14: 0 | AD14: 0 | AG14: 0 | AH14: 0 | AI14: 0 | AJ14: =IF(D$24<>"",D$24,"") ->  | AK14: =IF(D29<>"",D29,"") ->  | AL14: 0 | AM14: 0 | AN14: 0
B15: STEP 3 | C15: Enter List of Associations and Attributes Below | E15: STEP 4 ==> | G15: Compare EACH pair below Note: If you have less than 12 listed in Step 3. then some blanks cells will appear - only enter the data for the listed pairs | AB15: 0 | AC15: 0 | AD15: 0 | AG15: 0 | AH15: 0 | AI15: 0 | AJ15: =IF(D$25<>"",D$25,"") ->  | AK15: =IF(D26<>"",D26,"") ->  | AL15: 0 | AM15: 0 | AN15: 0
C16: You may enter up to 11 brands, associations, attitudes, segments, and/or differences | F16: Compare using a 1-9 scale, where 1= Virtually the Same and 9 = Virtual Opposites | O16: IMPORTANT | AB16: 0 | AC16: 0 | AD16: 0 | AG16: 0 | AH16: 0 | AI16: 0 | AJ16: =IF(D$25<>"",D$25,"") ->  | AK16: =IF(D27<>"",D27,"") ->  | AL16: 0 | AM16: 0 | AN16: 0
C17: Some examples provided, simply type over | F17: Please note that the pair sets below will update automatically when you enter the list of associations in Step 3. If not, your spreadsheet may be set to manual recalculation. | O17: Compare using a 1-9 scale | AB17: 0 | AC17: 0 | AD17: 0 | AG17: 0 | AH17: 0 | AI17: 0 | AJ17: =IF(D$25<>"",D$25,"") ->  | AK17: =IF(D28<>"",D28,"") ->  | AL17: 0 | AM17: 0 | AN17: 0
B18: Enter brand in Step 2 | C18: 1 | D18: =IF(G11<>"",G11,"Enter in Step 2") -> Enter in Step 2 | F18: =IF(AD3=2,Z3,"") ->  | G18: =IF(AD3=2,AA3,"") ->  | I18: =IF(AI3=2,AE3,"") ->  | J18: =IF(AI3=2,AF3,"") ->  | L18: =IF(AN3=2,AJ3,"") ->  | M18: =IF(AN3=2,AK3,"") ->  | O18: 1 = Virtually the same | AB18: 0 | AC18: 0 | AD18: 0 | AG18: 0 | AH18: 0 | AI18: 0 | AJ18: =IF(D$25<>"",D$25,"") ->  | AK18: =IF(D29<>"",D29,"") ->  | AL18: 0 | AM18: 0 | AN18: 0
C19: 2 | F19: =IF(AD4=2,Z4,"") ->  | G19: =IF(AD4=2,AA4,"") ->  | I19: =IF(AI4=2,AE4,"") ->  | J19: =IF(AI4=2,AF4,"") ->  | L19: =IF(AN4=2,AJ4,"") ->  | M19: =IF(AN4=2,AK4,"") ->  | O19: 2 = Quite similar | AB19: 0 | AC19: 0 | AD19: 0 | AE19: =IF(D$22<>"",D$22,"") ->  | AF19: =IF(D23<>"",D23,"") ->  | AG19: 0 | AH19: 0 | AI19: 0 | AJ19: =IF(D$26<>"",D$26,"") ->  | AK19: =IF(D27<>"",D27,"") ->  | AL19: 0 | AM19: 0 | AN19: 0
C20: 3 | O20: 3 = Reasonably similar | AB20: 0 | AC20: 0 | AD20: 0 | AG20: 0 | AH20: 0 | AI20: 0 | AJ20: =IF(D$26<>"",D$26,"") ->  | AK20: =IF(D28<>"",D28,"") ->  | AL20: 0 | AM20: 0 | AN20: 0
C21: 4 | O21: 4 = Somewhat similar | AB21: 0 | AC21: 0 | AD21: 0 | AG21: 0 | AH21: 0 | AI21: 0 | AJ21: =IF(D$26<>"",D$26,"") ->  | AK21: =IF(D29<>"",D29,"") ->  | AL21: 0 | AM21: 0 | AN21: 0
C22: 5 | O22: 5 = Neither (or unsure) | AB22: 0 | AC22: 0 | AD22: 0 | AG22: 0 | AH22: 0 | AI22: 0 | AJ22: =IF(D$27<>"",D$27,"") ->  | AK22: =IF(D28<>"",D28,"") ->  | AL22: 0 | AM22: 0 | AN22: 0
C23: 6 | O23: 6 = Somewhat dissimilar | AB23: 0 | AC23: 0 | AD23: 0 | AG23: 0 | AH23: 0 | AI23: 0 | AJ23: =IF(D$27<>"",D$27,"") ->  | AK23: =IF(D29<>"",D29,"") ->  | AL23: 0 | AM23: 0 | AN23: 0
C24: 7 | O24: 7 = Reasonably dissimilar | Z24: =IF(D$20<>"",D$20,"") ->  | AA24: =IF(D21<>"",D21,"") ->  | AB24: 0 | AC24: 0 | AD24: 0 | AG24: 0 | AH24: 0 | AI24: 0 | AJ24: =IF(D$28<>"",D$28,"") ->  | AK24: =IF(D29<>"",D29,"") ->  | AL24: 0 | AM24: 0 | AN24: 0
C25: 8 | O25: 8 = Quite dissimilar
C26: 9 | O26: 9 = Virtually opposites
C27: 10
C28: 11
C29: 12
D41: OPTIONAL STEP | E41: Ensure that your spreadsheet has the 'Solver add-in' loaded
E42: Please refer to "How to Add Solver" tab below - Solver is included with Excel, but needs to be turned on
E43: Note: Solver is standard with every version of Excel, including the student version
D50: STEP 5
AT51: Calculating your perceptual map. This may take several minutes.
J54: NOTE: This spreadsheet uses multi
E55: Your map will be automatically generated in 60 seconds or less | J55: dimensional scaling - so running the
C56: Cursor will return when the brand association map is ready | E56: Remember to re-rerun your map if you change the data | J56: same data more than once will
E57: If a dialog box should open when running the map, just click "continue" | J57: fine-tune the visual results
N59: STEP 6 | P59: Copy Your Map to Word or PP
N60: To maintain the formatting of the map
N61: when you copy it:
N62: 1 | O62: Click on the edge of the map | AH62: DATA | AI62: =+AH63 -> Enter in Step 2 | AJ62: =+AH64 ->  | AK62: =+AH65 ->  | AL62: =+AH66 ->  | AM62: =+AH67 ->  | AN62: =+AH68 ->  | AO62: =+AH69 ->  | AP62: =+AH70 ->  | AQ62: =+AH71 ->  | AR62: =+AH72 ->  | AS62: =+AH73 ->  | AT62: =+AH74 ->  | AY62: =+AI62 -> Enter in Step 2 | AZ62: =+AJ62 ->  | BE62: =+AO62 ->  | BF62: =+AP62 ->  | BG62: =+AQ62 ->  | BH62: =+AR62 ->  | BI62: =+AS62 ->  | BJ62: =+AT62 -> 
O63: to highlight it | AD63: 4 | AE63: 4 | AG63: 1 | AH63: =IF(D18="","",+D18) -> Enter in Step 2 | AI63: 0 | AX63: =+AH63 -> Enter in Step 2 | AY63: =IFERROR((AI63-AI90)^2,"") -> 0 | AZ63: =IFERROR((AJ63-AJ90)^2,"") -> 0 | BA63: 0 | BB63: 0 | BC63: 0 | BD63: 0 | BE63: 0 | BF63: 0 | BG63: 0 | BH63: 0 | BI63: 0 | BJ63: 0
AD64: =IF($AI64="",0,+$AI64) -> 0 | AE64: =IF($AI64="",0,0) -> 0 | AG64: =+AG63+1 -> 2 | AI64: =+H18 -> 0 | AJ64: 0 | AX64: =+AH64 ->  | AY64: =IFERROR((AI64-AI91)^2,"") -> 106.3617109 | AZ64: 0 | BA64: 0 | BB64: 0 | BC64: 0 | BD64: 0 | BE64: 0 | BF64: 0 | BG64: 0 | BH64: 0 | BI64: 0 | BJ64: 0
N65: 2 | O65: Select 'copy' from the above menu | AD65: =IF($AI65="",0,0) -> 0 | AE65: =IF($AI65="",0,+$AI65) -> 0 | AG65: =+AG64+1 -> 3 | AI65: =+H19 -> 0 | AJ65: =+H29 -> 0 | AK65: 0 | AY65: =IFERROR((AI65-AI92)^2,"") -> 23.35347128 | AZ65: 766.3587087 | BA65: 0 | BB65: 0 | BC65: 0 | BD65: 0 | BE65: 0 | BF65: 0 | BG65: 0 | BH65: 0 | BI65: 0 | BJ65: 0
AD66: =IF($AI66="",0,+$AI66) -> 0 | AE66: =IF($AI66="",0,0) -> 0 | AG66: 4 | AI66: 0 | AJ66: =+H30 -> 0 | AK66: =+H39 -> 0 | AL66: 0 | AY66: 227.6921969 | AZ66: 1716.045436 | BA66: 17.32208006 | BB66: 0 | BC66: 0 | BD66: 0 | BE66: 0 | BF66: 0 | BG66: 0 | BH66: 0 | BI66: 0 | BJ66: 0
N67: 3 | O67: Go to your Word or P/Point document | AD67: =IF($AI67="",0,0) -> 0 | AE67: =IF($AI67="",0,+$AI67) -> 0 | AG67: 5 | AI67: 0 | AJ67: 0 | AK67: =+K18 -> 0 | AL67: =+K26 -> 0 | AM67: 0 | AY67: 1.001313502 | AZ67: 80.99888036 | BA67: 28.65121576 | BB67: 152.0308375 | BC67: 0 | BD67: 0 | BE67: 0 | BF67: 0 | BG67: 0 | BH67: 0 | BI67: 0 | BJ67: 0
AD68: =IF($AI68="",0,+$AI68) -> 0 | AE68: =IF($AI68="",0,0) -> 0 | AG68: 6 | AI68: 0 | AJ68: 0 | AK68: =+K19 -> 0 | AL68: =+K27 -> 0 | AM68: =+K34 -> 0 | AN68: 0 | AY68: 671.7687239 | AZ68: 65.28737127 | BA68: 1816.959939 | BB68: 2251.77195 | BC68: 358.2446996 | BD68: 0 | BE68: 0 | BF68: 0 | BG68: 0 | BH68: 0 | BI68: 0 | BJ68: 0
N69: 4 | O69: Select 'paste', then 'paste special' | AD69: =IF($AI69="",0,0) -> 0 | AE69: =IF($AI69="",0,+$AI69) -> 0 | AG69: 7 | AI69: 0 | AJ69: 0 | AK69: 0 | AL69: 0 | AM69: =+K35 -> 0 | AN69: =+N19 -> 0 | AO69: 0 | AY69: 9.475779693 | AZ69: 282.5127186 | BA69: 6.018883303 | BB69: 30.87997094 | BC69: 1.800283697 | BD69: 624.9973607 | BE69: 0 | BF69: 0 | BG69: 0 | BH69: 0 | BI69: 0 | BJ69: 0
O70: and choose 'picture'. | AD70: =IF($AI70="",0,+$AI70) -> 0 | AE70: =IF($AI70="",0,0) -> 0 | AG70: 8 | AI70: 0 | AJ70: 0 | AK70: 0 | AL70: 0 | AM70: 0 | AN70: =+N20 -> 0 | AO70: =+N25 -> 0 | AP70: 0 | AY70: 386.5064793 | AZ70: 617.7784653 | BA70: 352.8158016 | BB70: 162.5447794 | BC70: 142.6951141 | BD70: 256.024681 | BE70: 81.0150646 | BF70: 0 | BG70: 0 | BH70: 0 | BI70: 0 | BJ70: 0
AD71: =IF($AI71="",0,0) -> 0 | AE71: =IF($AI71="",0,+$AI71) -> 0 | AG71: 9 | AI71: 0 | AJ71: 0 | AK71: 0 | AL71: 0 | AM71: 0 | AN71: 0 | AO71: =+N26 -> 0 | AP71: =+N30 -> 0 | AQ71: 0 | AY71: 94.77167564 | AZ71: 1295.936402 | BA71: 1.108559627 | BB71: 1.405988377 | BC71: 80.99817088 | BD71: 2269.627094 | BE71: 14.86421952 | BF71: 284.7928481 | BG71: 0 | BH71: 0 | BI71: 0 | BJ71: 0
AD72: =IF($AI72="",0,+$AI72) -> 0 | AE72: =IF($AI72="",0,0) -> 0 | AG72: 10 | AI72: 0 | AJ72: 0 | AK72: 0 | AL72: 0 | AM72: 0 | AN72: 0 | AO72: 0 | AP72: =+N31 -> 0 | AQ72: =+N34 -> 0 | AR72: 0 | AY72: 1269.547095 | AZ72: 305.8878706 | BA72: 2467.05582 | BB72: 2400.909568 | BC72: 674.5808371 | BD72: 3.969087903 | BE72: 902.7128581 | BF72: 177.7359984 | BG72: 2730.885497 | BH72: 0 | BI72: 0 | BJ72: 0
AD73: =IF($AI73="",0,0) -> 0 | AE73: =IF($AI73="",0,+$AI73) -> 0 | AG73: 11 | AI73: 0 | AJ73: 0 | AK73: 0 | AL73: 0 | AM73: 0 | AN73: 0 | AO73: 0 | AP73: 0 | AQ73: =+N35 -> 0 | AR73: =+N37 -> 0 | AS73: 0 | AY73: 491.9701001 | AZ73: 2400.999316 | BA73: 80.99054188 | BB73: 0.8922182237 | BC73: 312.1158917 | BD73: 2518.558199 | BE73: 87.00573756 | BF73: 132.4228067 | BG73: 17.99574997 | BH73: 2401.46632 | BI73: 0 | BJ73: 0
AD74: =IF($AI74="",0,+$AI74) -> 0 | AE74: =IF($AI74="",0,0) -> 0 | AG74: 12 | AI74: 0 | AJ74: 0 | AK74: 0 | AL74: 0 | AM74: =+N18 -> 0 | AN74: 0 | AO74: 0 | AP74: 0 | AQ74: 0 | AR74: =+N38 -> 0 | AS74: =+N39 -> 0 | AT74: 0 | AY74: 625.26903 | AZ74: 393.3145434 | BA74: 923.7236927 | BB74: 677.8500779 | BC74: 258.9629001 | BD74: 50.35406548 | BE74: 256.0041623 | BF74: 6.793553616 | BG74: 910.0841068 | BH74: 17.81752162 | BI74: 625.0006221 | BJ74: 0
AX76: Reduce | AY76: =SQRT(SUM(AY63:BJ74)) -> 198.507669
AX77: to one
AI87: =SUM(AI63:AI86) -> 0 | AJ87: =SUM(AJ63:AJ86) -> 0 | AK87: 0 | AL87: 0 | AM87: 0 | AN87: 0 | AO87: 0 | AP87: 0 | AQ87: 0 | AR87: 0 | AS87: 0
Z89: Final points | AH89: MAP DIST | AK89: =+AF90 -> 1 | AL89: =+AF91 -> 0 | AM89: =+AF92 -> 0 | AN89: =+AF93 -> 0 | AO89: =+AF94 -> 0 | AP89: =+AF95 -> 0 | AQ89: =+AF96 -> 0 | AR89: =+AF97 -> 0 | AS89: =+AF98 -> 0 | AT89: =+AF99 -> 0 | AU89: =+AF100 -> 0 | AV89: =+AF101 -> 0
Z90: =+IF($AF90=1,(AC90+$AD$117)*$AD$119,"") -> 4.043932012 | AA90: =+IF($AF90=1,(AD90+$AD$117)*$AD$119,"") -> 6.129373401 | AC90: 4.552375455 | AD90: 6.887117363 | AF90: =IF(D18="",0,1) -> 1 | AH90: =+AH63 -> Enter in Step 2 | AI90: =IFERROR(SUMXMY2(AC$90:AD$90,AC90:AD90),"") -> 0
Z91: =+IF($AF91=1,(AC91+$AD$117)*$AD$119,"") ->  | AA91: =+IF($AF91=1,(AD91+$AD$117)*$AD$119,"") ->  | AC91: 1.989315545 | AD91: 4.952199971 | AF91: =IF(D19="",0,1) -> 0 | AH91: =+AH64 ->  | AI91: =IFERROR(SUMXMY2(AC$90:AD$90,AC91:AD91),"") -> 10.31318141 | AJ91: =IFERROR(SUMXMY2(AC$91:AD$91,AC91:AD91),"") -> 0
AC92: 6.719454718 | AD92: 7.256319757 | AF92: 0 | AI92: =IFERROR(SUMXMY2(AC$90:AD$90,AC92:AD92),"") -> 4.832542941 | AJ92: =IFERROR(SUMXMY2(AC$91:AD$91,AC92:AD92),"") -> 27.68318458 | AK92: =IFERROR(SUMXMY2(AC$92:AD$92,AC92:AD92),"") -> 0
AC93: 8.3374214 | AD93: 6.013675752 | AF93: 0 | AI93: =IFERROR(SUMXMY2(AC$90:AD$90,AC93:AD93),"") -> 15.08947305 | AJ93: 41.42517877 | AK93: =IFERROR(SUMXMY2(AC$92:AD$92,AC93:AD93),"") -> 4.161980305 | AL93: =IFERROR(SUMXMY2(AC$93:AD$93,AC93:AD93),"") -> 0
AC94: 4.827113624 | AD94: 5.92525694 | AF94: 0 | AI94: 1.000656535 | AJ94: 8.999937797 | AK94: 5.352683043 | AL94: =IFERROR(SUMXMY2(AC$93:AD$93,AC94:AD94),"") -> 12.33007857 | AM94: =IFERROR(SUMXMY2(AC$94:AD$94,AC94:AD94),"") -> 0
AC95: 2.614632519 | AD95: 2.179288363 | AF95: 0 | AI95: 25.91850157 | AJ95: 8.080060103 | AK95: 42.62581306 | AL95: 47.45283922 | AM95: =IFERROR(SUMXMY2(AC$94:AD$94,AC95:AD95),"") -> 18.92735321 | AN95: =IFERROR(SUMXMY2(AC$95:AD$95,AC95:AD95),"") -> 0
AC96: 5.984283635 | AD96: 5.873256226 | AF96: 0 | AI96: 3.078275441 | AJ96: 16.80811466 | AK96: 2.453341253 | AL96: 5.556974981 | AM96: 1.34174651 | AN96: =IFERROR(SUMXMY2(AC$95:AD$95,AC96:AD96),"") -> 24.99994721 | AO96: =IFERROR(SUMXMY2(AC$96:AD$96,AC96:AD96),"") -> 0
AC97: 6.544439294 | AD97: 2.925873909 | AF97: 0 | AI97: 19.65976804 | AJ97: 24.85514967 | AK97: 18.78339164 | AL97: 12.74930505 | AM97: 11.94550602 | AN97: 16.00077126 | AO97: =IFERROR(SUMXMY2(AC$96:AD$96,AC97:AD97),"") -> 9.000836883 | AP97: =IFERROR(SUMXMY2(AC$97:AD$97,AC97:AD97),"") -> 0
AC98: 7.672463683 | AD98: 6.875983727 | AF98: 0 | AI98: 9.735074506 | AJ98: 35.99911669 | AK98: 1.052881583 | AL98: 1.185743808 | AM98: 8.999898382 | AN98: 47.64060341 | AO98: 3.855414313 | AP98: =IFERROR(SUMXMY2(AC$97:AD$97,AC98:AD98),"") -> 16.87580659 | AQ98: =IFERROR(SUMXMY2(AC$98:AD$98,AC98:AD98),"") -> 0
AC99: 3.426985959 | AD99: 1.025018518 | AF99: 0 | AI99: 35.63070439 | AJ99: 17.48965039 | AK99: 49.66946567 | AL99: 48.99907722 | AM99: 25.97269407 | AN99: 1.992256987 | AO99: 30.04518028 | AP99: 13.33176651 | AQ99: =IFERROR(SUMXMY2(AC$98:AD$98,AC99:AD99),"") -> 52.25787498 | AR99: =IFERROR(SUMXMY2(AC$99:AD$99,AC99:AD99),"") -> 0
AC100: 8.981364814 | AD100: 5.285726636 | AF100: 0 | AI100: 22.18039901 | AJ100: 48.99999302 | AK100: 8.999474534 | AL100: 0.9445730378 | AM100: 17.66680196 | AN100: 50.18523886 | AO100: 9.327686614 | AP100: 11.50751088 | AQ100: 4.242139787 | AR100: =IFERROR(SUMXMY2(AC$99:AD$99,AC100:AD100),"") -> 49.00475814 | AS100: =IFERROR(SUMXMY2(AC$100:AD$100,AC100:AD100),"") -> 0
AC101: 5.26752358 | AD101: 1.937981764 | AF101: 0 | AI101: 25.00538002 | AJ101: 19.83215932 | AK101: 30.39282305 | AL101: 26.03555411 | AM101: 16.09232426 | AN101: 7.096059856 | AO101: 16.00013007 | AP101: 2.606444631 | AQ101: 30.16760028 | AR101: 4.221080623 | AS101: =IFERROR(SUMXMY2(AC$100:AD$100,AC101:AD101),"") -> 25.00001244 | AT101: =IFERROR(SUMXMY2(AC$101:AD$101,AC101:AD101),"") -> 0
AC102: =IF($AF102=1,AI102,"") ->  | AV102: =IFERROR(IF(OR($AF102=0,AV$89=0),"",SQRT(($AI$101-$AI102)^2+($AJ$101-$AJ102)^2)),"") -> 
AV103: =IFERROR(IF(OR($AF103=0,AV$89=0),"",SQRT(($AI$101-$AI103)^2+($AJ$101-$AJ103)^2)),"") ->  | AW103: =IFERROR(IF(OR($AF103=0,AW$89=0),"",SQRT(($AI$102-$AI103)^2+($AJ$102-$AJ103)^2)),"") -> 
AW104: =IFERROR(IF(OR($AF104=0,AW$89=0),"",SQRT(($AI$102-$AI104)^2+($AJ$102-$AJ104)^2)),"") ->  | AX104: =IFERROR(IF(OR($AF104=0,AX$89=0),"",SQRT(($AI$103-$AI104)^2+($AJ$103-$AJ104)^2)),"") -> 
AX105: =IFERROR(IF(OR($AF105=0,AX$89=0),"",SQRT(($AI$103-$AI105)^2+($AJ$103-$AJ105)^2)),"") ->  | AY105: =IFERROR(IF(OR($AF105=0,AY$89=0),"",SQRT(($AI$104-$AI105)^2+($AJ$104-$AJ105)^2)),"") -> 
AY106: =IFERROR(IF(OR($AF106=0,AY$89=0),"",SQRT(($AI$104-$AI106)^2+($AJ$104-$AJ106)^2)),"") ->  | AZ106: =IFERROR(IF(OR($AF106=0,AZ$89=0),"",SQRT(($AI$105-$AI106)^2+($AJ$105-$AJ106)^2)),"") -> 
AZ107: =IFERROR(IF(OR($AF107=0,AZ$89=0),"",SQRT(($AI$105-$AI107)^2+($AJ$105-$AJ107)^2)),"") ->  | BA107: =IFERROR(IF(OR($AF107=0,BA$89=0),"",SQRT(($AI$106-$AI107)^2+($AJ$106-$AJ107)^2)),"") -> 
BA108: =IFERROR(IF(OR($AF108=0,BA$89=0),"",SQRT(($AI$106-$AI108)^2+($AJ$106-$AJ108)^2)),"") ->  | BB108: =IFERROR(IF(OR($AF108=0,BB$89=0),"",SQRT(($AI$107-$AI108)^2+($AJ$107-$AJ108)^2)),"") -> 
BB109: =IFERROR(IF(OR($AF109=0,BB$89=0),"",SQRT(($AI$107-$AI109)^2+($AJ$107-$AJ109)^2)),"") ->  | BC109: =IFERROR(IF(OR($AF109=0,BC$89=0),"",SQRT(($AI$108-$AI109)^2+($AJ$108-$AJ109)^2)),"") -> 
BC110: =IFERROR(IF(OR($AF110=0,BC$89=0),"",SQRT(($AI$108-$AI110)^2+($AJ$108-$AJ110)^2)),"") ->  | BD110: =IFERROR(IF(OR($AF110=0,BD$89=0),"",SQRT(($AI$109-$AI110)^2+($AJ$109-$AJ110)^2)),"") -> 
Z111: =+IF($AF111=1,(AC111+$AD$117)*$AD$119,"") ->  | BD111: =IFERROR(IF(OR($AF111=0,BD$89=0),"",SQRT(($AI$109-$AI111)^2+($AJ$109-$AJ111)^2)),"") ->  | BE111: =IFERROR(IF(OR($AF111=0,BE$89=0),"",SQRT(($AI$110-$AI111)^2+($AJ$110-$AJ111)^2)),"") -> 
BE112: =IFERROR(IF(OR($AF112=0,BE$89=0),"",SQRT(($AI$110-$AI112)^2+($AJ$110-$AJ112)^2)),"") ->  | BF112: =IFERROR(IF(OR($AF112=0,BF$89=0),"",SQRT(($AI$111-$AI112)^2+($AJ$111-$AJ112)^2)),"") -> 
Z113: =+IF($AF113=1,(AC113+$AD$117)*$AD$119,"") ->  | AA113: =+IF($AF113=1,(AD113+$AD$117)*$AD$119,"") ->  | AC113: =IF($AF113=1,AI113,"") ->  | AD113: =IF($AF113=1,AJ113,"") ->  | BF113: =IFERROR(IF(OR($AF113=0,BF$89=0),"",SQRT(($AI$111-$AI113)^2+($AJ$111-$AJ113)^2)),"") ->  | BG113: =IFERROR(IF(OR($AF113=0,BG$89=0),"",SQRT(($AI$112-$AI113)^2+($AJ$112-$AJ113)^2)),"") -> 
Z114: Min | AA114: =MIN(Z90:AA112) -> 4.043932012 | AC114: Min | AD114: =MIN(AC90:AD112) -> 1.025018518 | AK114: =IF(AK89=1,SUM(AK90:AK113),"") -> 163.4918541 | AL114: =IF(AL89=1,SUM(AL90:AL113),"") -> 
Z115: Max | AA115: =MAX(Z90:AA112) -> 6.129373401 | AC115: Max | AD115: =MAX(AC90:AD112) -> 8.981364814
AA116: =+AA115-AA114 -> 2.085441389 | AD116: =+AD115-AD114 -> 7.956346297
AC117: Down | AD117: =1-AD114 -> -0.02501851783
AC118: Top | AD118: =+AD117+AD115 -> 8.956346297
AC119: To 9 | AD119: =8/AD118 -> 0.8932213801
AH148: =+AH90 -> Enter in Step 2 | AK148: =IFERROR(AK90^2,"") -> 0 | AL148: 0 | AM148: 0 | AN148: 0 | AO148: 0 | AP148: 0 | AQ148: 0 | AR148: 0 | AS148: 0 | AT148: 0 | AU148: 0
AK149: =IFERROR(AK91^2,"") -> 0 | AL149: 0 | AM149: 0 | AN149: 0 | AO149: 0 | AP149: 0 | AQ149: 0 | AR149: 0 | AS149: 0 | AT149: 0 | AU149: 0
AK150: =IFERROR(AK92^2,"") -> 0 | AL150: 0 | AM150: 0 | AN150: 0 | AO150: 0 | AP150: 0 | AQ150: 0 | AR150: 0 | AS150: 0 | AT150: 0 | AU150: 0
AK151: =IFERROR(AK93^2,"") -> 17.32208006 | AL151: 0 | AM151: 0 | AN151: 0 | AO151: 0 | AP151: 0 | AQ151: 0 | AR151: 0 | AS151: 0 | AT151: 0 | AU151: 0
AK152: =IFERROR(AK94^2,"") -> 28.65121576 | AL152: 152.0308375 | AM152: 0 | AN152: 0 | AO152: 0 | AP152: 0 | AQ152: 0 | AR152: 0 | AS152: 0 | AT152: 0 | AU152: 0
AK153: =IFERROR(AK95^2,"") -> 1816.959939 | AL153: 2251.77195 | AM153: 358.2446996 | AN153: 0 | AO153: 0 | AP153: 0 | AQ153: 0 | AR153: 0 | AS153: 0 | AT153: 0 | AU153: 0
AK154: =IFERROR(AK96^2,"") -> 6.018883303 | AL154: 30.87997094 | AM154: 1.800283697 | AN154: 624.9973607 | AO154: 0 | AP154: 0 | AQ154: 0 | AR154: 0 | AS154: 0 | AT154: 0 | AU154: 0
AK155: =IFERROR(AK97^2,"") -> 352.8158016 | AL155: 162.5447794 | AM155: 142.6951141 | AN155: 256.024681 | AO155: 81.0150646 | AP155: 0 | AQ155: 0 | AR155: 0 | AS155: 0 | AT155: 0 | AU155: 0
AK156: =IFERROR(AK98^2,"") -> 1.108559627 | AL156: 1.405988377 | AM156: 80.99817088 | AN156: 2269.627094 | AO156: 14.86421952 | AP156: 284.7928481 | AQ156: 0 | AR156: 0 | AS156: 0 | AT156: 0 | AU156: 0
AK157: =IFERROR(AK99^2,"") -> 2467.05582 | AL157: 2400.909568 | AM157: 674.5808371 | AN157: 3.969087903 | AO157: 902.7128581 | AP157: 177.7359984 | AQ157: 2730.885497 | AR157: 0 | AS157: 0 | AT157: 0 | AU157: 0
AK158: =IFERROR(AK100^2,"") -> 80.99054188 | AL158: 0.8922182237 | AM158: 312.1158917 | AN158: 2518.558199 | AO158: 87.00573756 | AP158: 132.4228067 | AQ158: 17.99574997 | AR158: 2401.46632 | AS158: 0 | AT158: 0 | AU158: 0
AK159: =IFERROR(AK101^2,"") -> 923.7236927 | AL159: 677.8500779 | AM159: 258.9629001 | AN159: 50.35406548 | AO159: 256.0041623 | AP159: 6.793553616 | AQ159: 910.0841068 | AR159: 17.81752162 | AS159: 625.0006221 | AT159: 0 | AU159: 0
AH172: =SUM(AK172:AU172) -> 27572.45738 | AK172: =SUM(AK148:AK171) -> 5694.646534 | AL172: =SUM(AL148:AL171) -> 5678.285391 | AM172: 1829.397897 | AN172: 5723.530488 | AO172: 1341.602042 | AP172: 601.7452068 | AQ172: 3658.965354 | AR172: 2419.283842 | AS172: 625.0006221 | AT172: 0 | AU172: 0
AH175: =+AH148 -> Enter in Step 2 | AK175: =IFERROR((AK90-AI63)^2,"") -> 0 | AL175: =IFERROR((AL90-AJ63)^2,"") -> 0 | AM175: =IFERROR((AM90-AK63)^2,"") -> 0 | AN175: =IFERROR((AN90-AL63)^2,"") -> 0 | AO175: =IFERROR((AO90-AM63)^2,"") -> 0 | AP175: =IFERROR((AP90-AN63)^2,"") -> 0 | AQ175: =IFERROR((AQ90-AO63)^2,"") -> 0 | AR175: =IFERROR((AR90-AP63)^2,"") -> 0 | AS175: =IFERROR((AS90-AQ63)^2,"") -> 0 | AT175: =IFERROR((AT90-AR63)^2,"") -> 0 | AU175: =IFERROR((AU90-AS63)^2,"") -> 0
AK176: =IFERROR((AK91-AI64)^2,"") -> 0 | AL176: 0 | AM176: 0 | AN176: 0 | AO176: 0 | AP176: 0 | AQ176: 0 | AR176: 0 | AS176: 0 | AT176: 0 | AU176: 0
AK177: 0 | AL177: 0 | AM177: 0 | AN177: 0 | AO177: 0 | AP177: 0 | AQ177: 0 | AR177: 0 | AS177: 0 | AT177: 0 | AU177: 0
AK178: 17.32208006 | AL178: 0 | AM178: 0 | AN178: 0 | AO178: 0 | AP178: 0 | AQ178: 0 | AR178: 0 | AS178: 0 | AT178: 0 | AU178: 0
AK179: 28.65121576 | AL179: 152.0308375 | AM179: 0 | AN179: 0 | AO179: 0 | AP179: 0 | AQ179: 0 | AR179: 0 | AS179: 0 | AT179: 0 | AU179: 0
AK180: 1816.959939 | AL180: 2251.77195 | AM180: 358.2446996 | AN180: 0 | AO180: 0 | AP180: 0 | AQ180: 0 | AR180: 0 | AS180: 0 | AT180: 0 | AU180: 0
AK181: 6.018883303 | AL181: 30.87997094 | AM181: 1.800283697 | AN181: 624.9973607 | AO181: 0 | AP181: 0 | AQ181: 0 | AR181: 0 | AS181: 0 | AT181: 0 | AU181: 0
AK182: 352.8158016 | AL182: 162.5447794 | AM182: 142.6951141 | AN182: 256.024681 | AO182: 81.0150646 | AP182: 0 | AQ182: 0 | AR182: 0 | AS182: 0 | AT182: 0 | AU182: 0
AK183: 1.108559627 | AL183: 1.405988377 | AM183: 80.99817088 | AN183: 2269.627094 | AO183: 14.86421952 | AP183: 284.7928481 | AQ183: 0 | AR183: 0 | AS183: 0 | AT183: 0 | AU183: 0
AK184: 2467.05582 | AL184: 2400.909568 | AM184: 674.5808371 | AN184: 3.969087903 | AO184: 902.7128581 | AP184: 177.7359984 | AQ184: 2730.885497 | AR184: 0 | AS184: 0 | AT184: 0 | AU184: 0
AK185: 80.99054188 | AL185: 0.8922182237 | AM185: 312.1158917 | AN185: 2518.558199 | AO185: 87.00573756 | AP185: 132.4228067 | AQ185: 17.99574997 | AR185: 2401.46632 | AS185: 0 | AT185: 0 | AU185: 0
AK186: 923.7236927 | AL186: 677.8500779 | AM186: 258.9629001 | AN186: 50.35406548 | AO186: 256.0041623 | AP186: 6.793553616 | AQ186: 910.0841068 | AR186: 17.81752162 | AS186: 625.0006221 | AT186: 0 | AU186: 0
AH199: =SUM(AK199:BH199) -> 27572.45738 | AK199: =SUM(AK175:AK198) -> 5694.646534 | AL199: =SUM(AL175:AL198) -> 5678.285391 | AM199: 1829.397897 | AN199: 5723.530488 | AO199: 1341.602042 | AP199: 601.7452068 | AQ199: 3658.965354 | AR199: 2419.283842 | AS199: 625.0006221 | AT199: 0 | AU199: 0
AH202: =SQRT(AH199/AH172) -> 1 | AK202: 1 | AL202: =+AH175 -> Enter in Step 2 | AM202: =IF($AF90=1,AC90,"") -> 4.552375455 | AN202: =IF($AF90=1,AD90,"") -> 6.887117363 | AO202: 3
AK203: 2 | AL203: =+AH176 ->  | AM203: =IF($AF91=1,AC91,"") ->  | AO203: 1
AK204: 3 | AO204: 1
AK205: 4 | AO205: 1
AK206: 5 | AO206: 1
AK207: 6 | AO207: 1
AK208: 7 | AO208: 1
AK209: 8 | AO209: 1
AK210: 9 | AO210: 1
AK211: 10 | AO211: 1
AK212: 11 | AO212: 1
AK213: 12 | AO213: 1
AN214: =+AA102 -> 
AN215: =+AA103 -> 
AN216: =+AA104 -> 
AN217: =+AA105 -> 
AN218: =+AA106 -> 
AN219: =+AA107 -> 
AN220: =+AA108 -> 
AI221: =ABS(AI64^2-AI91) -> 10.31318141
AI222: =ABS(AI65^2-AI92) -> 4.832542941 | AJ222: =ABS(AJ65^2-AJ92) -> 27.68318458
AI223: 15.08947305 | AJ223: =ABS(AJ66^2-AJ93) -> 41.42517877 | AK223: 4.161980305
AI224: 1.000656535 | AJ224: =ABS(AJ67^2-AJ94) -> 8.999937797 | AK224: 5.352683043 | AL224: 12.33007857
AI225: 25.91850157 | AJ225: =ABS(AJ68^2-AJ95) -> 8.080060103 | AK225: 42.62581306 | AL225: 47.45283922 | AM225: 18.92735321
AI226: 3.078275441 | AJ226: =ABS(AJ69^2-AJ96) -> 16.80811466 | AK226: 2.453341253 | AL226: 5.556974981 | AM226: 1.34174651 | AN226: 24.99994721
AI227: 19.65976804 | AJ227: =ABS(AJ70^2-AJ97) -> 24.85514967 | AK227: 18.78339164 | AL227: 12.74930505 | AM227: 11.94550602 | AN227: 16.00077126 | AO227: 9.000836883
AI228: 9.735074506 | AJ228: =ABS(AJ71^2-AJ98) -> 35.99911669 | AK228: 1.052881583 | AL228: 1.185743808 | AM228: 8.999898382 | AN228: 47.64060341 | AO228: 3.855414313 | AP228: 16.87580659
AI229: 35.63070439 | AJ229: =ABS(AJ72^2-AJ99) -> 17.48965039 | AK229: 49.66946567 | AL229: 48.99907722 | AM229: 25.97269407 | AN229: 1.992256987 | AO229: 30.04518028 | AP229: 13.33176651 | AQ229: 52.25787498
AI230: 22.18039901 | AJ230: =ABS(AJ73^2-AJ100) -> 48.99999302 | AK230: 8.999474534 | AL230: 0.9445730378 | AM230: 17.66680196 | AN230: 50.18523886 | AO230: 9.327686614 | AP230: 11.50751088 | AQ230: 4.242139787 | AR230: 49.00475814
AI231: 25.00538002 | AJ231: =ABS(AJ74^2-AJ101) -> 19.83215932 | AK231: 30.39282305 | AL231: 26.03555411 | AM231: 16.09232426 | AN231: 7.096059856 | AO231: 16.00013007 | AP231: 2.606444631 | AQ231: 30.16760028 | AR231: 4.221080623 | AS231: 25.00001244
AI232: =SUM(AI221:AS231) -> 1267.667947
AI233: Min Goal

Sheet How to Add Solver
B2: OPTIONAL STEPS | D2: Important Note for Apple Mac users
B3: SOLVER ADD-IN | C3: Ensure that your spreadsheet has the 'Solver add-in' loaded
C4: In the top menu of Excel click "File" then select "Options" and then select "Add-Ins"
C5: Then click 'Go' next to 'Manage Excel Add-ins' and select the 'Solver Add-in' (as shown below)
B6: Follow the sequence as shown | C6: Please note that these options are standard with every version of Excel, including the student version
L10: ATTENTION APPLE MAC USERS!!!
L11: Do not follow the instructions in Step 5
L12: Instead, select 'Tools', then 'Add-ins' and then 'Solver'
L13: You will also need to follow Step 6
F19: Part C: Select Go
B20: Part A: Select Options | I20: Part D: Tick Solver Add-in
C21: Part B: Select Add-ins
B24: SAVE/REOPEN | C24: IMPORTANT: Save the spreadsheet and exit Excel, then reopen the spreadsheet
C25: Note: You need to save, exit and reopen Excel in order for the Solver Add-in to be loaded into the spreadsheet
C26: Solver should then appear under Data in the top menu, as shown below
